fUST/lending_fUST_20241216
["ID","MTS","AMOUNT","RATE_DAILY","PERIOD"]
[345530425,1734316246550,-500.0,0.00027671,7]
[345530426,1734316246559,-79689.52,0.00027671,7]
[345530428,1734316246568,-1369.239457,0.00027671,7]
[345530431,1734316246578,-507.46612783,0.00027671,7]
[345530433,1734316246588,-500.0,0.00027671,7]
[345530435,1734316246597,-500.0,0.00027671,7]
[345530437,1734316246606,-505.04767068,0.00027671,7]
[345530439,1734316246615,-500.0,0.00027671,7]
[345530441,1734316246625,-500.0,0.00027671,7]
[345530443,1734316246642,-500.0,0.00027671,7]
[345530445,1734316246651,-500.0,0.00027671,7]
[345530447,1734316246661,-502.37854492,0.00027671,7]
[345530449,1734316246670,-1321.974824,0.00027671,7]
[345530451,1734316246680,-196.20937865,0.00027671,7]
[345530453,1734316246689,-500.0,0.00027671,7]
[345530455,1734316246699,-1321.974824,0.00027671,7]
[345530457,1734316246708,-500.0,0.00027671,7]
[345530466,1734316246785,-1808.98,0.00027671,7]
[345530468,1734316246795,-506.22579799,0.00027671,7]
[345530470,1734316246805,-500.0,0.00027671,7]
[345530472,1734316246815,-502.73270547,0.00027671,7]
[345530474,1734316246824,-500.0,0.00027671,7]
[345530476,1734316246835,-507.20653829,0.00027671,7]
[345530478,1734316246844,-503.5881907,0.00027671,7]
[345530480,1734316246853,-151.0,0.00027671,7]
[345530482,1734316246862,-502.6579722,0.00027671,7]
[345530484,1734316246871,-500.0,0.00027671,7]
[345530486,1734316246881,-500.0,0.00027671,2]
[345530488,1734316246899,-500.0,0.00027671,7]
[345530491,1734316246908,-500.0,0.00027671,7]
[345530493,1734316246918,-500.0,0.00027671,7]
[345530495,1734316246927,-507.5613979,0.00027671,7]
[345530497,1734316246936,-504.25022879,0.00027671,7]
[345530499,1734316246946,-500.0,0.00027671,7]
[345530501,1734316246955,-500.0,0.00027671,7]
[345530503,1734316246965,-385.31930586,0.00027671,7]
[345530515,1734316247073,-118.50300597,0.00027671,7]
[345530517,1734316247083,-376.61137933,0.00027671,7]
[345530612,1734316921132,400.0,0.00013973,2]
[345530663,1734317432401,-400.0,0.00020447,2]
[345530665,1734317432411,-170.1748122,0.00024733,2]
[345530667,1734317432420,-250.3445021,0.00024745,2]
[345530669,1734317432430,-215.400134,0.00025218,2]
[345530671,1734317432440,-162.97286763,0.00025399,2]
[345530673,1734317432449,-179.03,0.00025501,2]
[345530675,1734317432459,-300.0,0.0002551,2]
[345530677,1734317432468,-9851.33361873,0.00025511,2]
[345530689,1734317432576,-421.49265646,0.00025511,2]
[345530691,1734317432588,-2089.48934082,0.00025511,2]
[345530916,1734317438595,-1153.346855,0.00025511,2]
[345531025,1734317440398,-5702.55270219,0.00025511,2]
[345531054,1734317444557,-1048.49236751,0.00025511,2]
[345531056,1734317444570,-499.9967325,0.00025511,2]
[345531238,1734317446349,-4133.29572679,0.00025511,2]
[345531239,1734317446360,-259.702932,0.00025753,2]
[345531240,1734317446370,-500.0,0.00025878,2]
[345531241,1734317446379,-1305.89261689,0.00026,120]
[345531242,1734317446397,-626.814,0.0002629,2]
[345531243,1734317446409,-666.0,0.000266,2]
[345531244,1734317446419,-716.42579778,0.00026606,2]
[345531245,1734317446429,-259.702932,0.00026706,2]
[345531246,1734317446439,-1000.0,0.000268,10]
[345531247,1734317446448,-1888.18692241,0.000269,5]
[345531248,1734317446462,-2772.26075734,0.000269,5]
[345531249,1734317446472,-400.0,0.00026921,2]
[345531250,1734317446482,-153.6,0.00026988,5]
[345531252,1734317446492,-340.0,0.00027,2]
[345531254,1734317446502,-151.0,0.00027,2]
[345531256,1734317446512,-716.42579778,0.00027087,2]
[345531258,1734317446522,-165.51266278,0.00027249,2]
[345531260,1734317446535,-240.58130524,0.00027249,2]
[345531262,1734317446545,-500.0,0.00027249,2]
[345531264,1734317446554,-500.0,0.00027249,2]
[345531266,1734317446564,-371.26693734,0.00027249,2]
[345531268,1734317446574,-500.0,0.00027249,2]
[345531270,1734317446584,-500.0,0.00027249,2]
[345531273,1734317446595,-500.0,0.00027249,2]
[345531275,1734317446604,-500.0,0.00027249,2]
[345531277,1734317446614,-983.56655405,0.00027249,2]
[345531278,1734317446623,-500.0,0.00027249,2]
[345531281,1734317446634,-367.10144437,0.00027249,2]
[345531283,1734317446644,-500.0,0.00027249,2]
[345531285,1734317446654,-497.68537674,0.00027249,2]
[345531299,1734317446789,-2.31462326,0.00027249,2]
[345531301,1734317446799,-500.0,0.00027249,2]
[345531303,1734317446813,-983.56655405,0.00027249,2]
[345531305,1734317446824,-500.0,0.00027249,2]
[345531307,1734317446834,-500.0,0.00027249,2]
[345531309,1734317446844,-500.0,0.00027249,2]
[345531311,1734317446853,-500.0,0.00027249,2]
[345531313,1734317446865,-500.0,0.00027249,2]
[345531315,1734317446875,-500.0,0.00027249,2]
[345531317,1734317446885,-500.0,0.00027249,2]
[345531319,1734317446896,-983.56655405,0.00027249,2]
[345531322,1734317446906,-500.0,0.00027249,2]
[345531324,1734317446915,-500.0,0.00027249,2]
[345531326,1734317446925,-500.0,0.00027249,2]
[345531328,1734317446935,-500.0,0.00027249,2]
[345531330,1734317446945,-500.0,0.00027249,2]
[345531332,1734317446955,-983.56655405,0.00027249,2]
[345531334,1734317446964,-500.0,0.00027249,2]
[345531336,1734317446974,-500.0,0.00027249,2]
[345531338,1734317446984,-500.0,0.00027249,2]
[345531340,1734317446993,-500.0,0.00027249,2]
[345531342,1734317447002,-500.0,0.00027249,2]
[345531344,1734317447012,-983.56655405,0.00027249,2]
[345531346,1734317447021,-500.0,0.00027249,2]
[345531348,1734317447037,-500.0,0.00027249,2]
[345531350,1734317447047,-500.0,0.00027249,2]
[345531352,1734317447057,-500.0,0.00027249,2]
[345531354,1734317447067,-983.56655405,0.00027249,2]
[345531356,1734317447077,-250.79071378,0.00027249,2]
[345531358,1734317447087,-500.0,0.00027249,2]
[345531360,1734317447098,-500.0,0.00027249,2]
[345531362,1734317447107,-500.0,0.00027249,2]
[345531364,1734317447117,-15.49311274,0.00027249,2]
[345531729,1734317946478,-500.0,0.00028,120]
[345531730,1734317946651,-190.79,0.000284,31]
[345531731,1734317946690,-190.79,0.000284,31]
[345531732,1734317946716,-190.79,0.000284,31]
[345531733,1734317946743,-190.79,0.000284,31]
[345531734,1734317946770,-190.79,0.000284,31]
[345531735,1734317946796,-190.79,0.000284,31]
[345531736,1734317946820,-190.79,0.000284,31]
[345531737,1734317946845,-190.79,0.000284,31]
[345531738,1734317946871,-190.79,0.000284,31]
[345531739,1734317946897,-72.37,0.000284,31]
[345531740,1734317947002,-118.42,0.000284,31]
[345531741,1734317947032,-190.79,0.000284,31]
[345531742,1734317947061,-190.79,0.000284,31]
[345531743,1734317947091,-135.79,0.000285,30]
[345531744,1734317947200,-445.33,0.000285,30]
[345531745,1734317964529,135.79,0.000274,30]
[345531747,1734317966075,400.0,0.00013973,2]
[345531748,1734318311344,151.0,0.00020222,2]
[345531766,1734318632628,-400.0,0.00020447,2]
[345531767,1734318632640,-350.0,0.00020548,2]
[345531768,1734318632652,-177.22375,0.00024908,2]
[345531769,1734318632664,-300.0,0.00024933,2]
[345531770,1734318632675,-11086.36738486,0.00024934,2]
[345531771,1734318632690,-13813.63261514,0.00024934,2]
[345531772,1734318632702,-160.18970801,0.00025,2]
[345531773,1734318632713,-160.69008513,0.00025,2]
[345531774,1734318632725,-282.80695521,0.00025,2]
[345531775,1734318632737,-300.0,0.00025499,2]
[345531776,1734318632749,-162.5381692,0.00025558,2]
[345531777,1734318632759,-194.777199,0.00025753,2]
[345531778,1734318632768,-621.71,0.0002629,2]
[345531779,1734318632778,-5093.55004307,0.00026461,2]
[345531780,1734318632930,-356.2164967,0.00026461,2]
[345531809,1734318638872,-1393.566327,0.00026461,2]
[345531810,1734318638956,-369.99999999,0.00026461,2]
[345531811,1734318638968,-1755.49061974,0.00026461,2]
[345531812,1734318638977,-8968.8234865,0.00026608,2]
[345531813,1734318638987,-537.31934837,0.00026668,2]
[345531814,1734318638996,-400.0,0.00026921,2]
[345531815,1734318639005,-319.0,0.00027,2]
[345531816,1734318639014,-151.0,0.00027,2]
[345531817,1734318639024,-194.777199,0.00027024,2]
[345531818,1734318639033,-8968.82348651,0.0002711,2]
[345531819,1734318639042,-537.31934833,0.0002714,2]
[345531820,1734318639052,-156.12270174,0.00027211,2]
[345531821,1734318639062,-61.41418437,0.00027239,2]
[345531822,1734318639075,-438.58581563,0.00027239,2]
[345531823,1734318639084,-500.0,0.00027239,2]
[345531824,1734318639093,-500.0,0.00027239,2]
[345531825,1734318639102,-587.05105263,0.00027239,2]
[345531826,1734318639111,-860.71742799,0.00027239,2]
[345531827,1734318639120,-500.0,0.00027239,2]
[345531828,1734318639130,-500.0,0.00027239,2]
[345531829,1734318639140,-500.0,0.00027239,2]
[345531830,1734318639149,-587.05105263,0.00027239,2]
[345531831,1734318639159,-500.0,0.00027239,2]
[345531832,1734318639168,-860.71742799,0.00027239,2]
[345531833,1734318639179,-500.0,0.00027239,2]
[345531834,1734318639193,-500.0,0.00027239,2]
[345531835,1734318639202,-587.05105263,0.00027239,2]
[345531836,1734318639212,-500.0,0.00027239,2]
[345531837,1734318639223,-500.0,0.00027239,2]
[345531838,1734318639232,-500.0,0.00027239,2]
[345531840,1734318639242,-500.0,0.00027239,2]
[345531841,1734318639251,-361.13526992,0.00027239,2]
[345531842,1734318639260,-860.71742799,0.00027239,2]
[345531843,1734318639269,-587.05105263,0.00027239,2]
[345531844,1734318639279,-500.0,0.00027239,2]
[345531845,1734318639288,-500.0,0.00027239,2]
[345531846,1734318639297,-860.71742799,0.00027239,2]
[345531847,1734318639306,-587.05105263,0.00027239,2]
[345531848,1734318639315,-500.0,0.00027239,2]
[345531849,1734318639325,-500.0,0.00027239,2]
[345531850,1734318639334,-500.0,0.00027239,2]
[345531851,1734318639350,-587.05105263,0.00027239,2]
[345531852,1734318639364,-860.71742799,0.00027239,2]
[345531853,1734318639374,-500.0,0.00027239,2]
[345531854,1734318639384,-587.05105263,0.00027239,2]
[345531855,1734318639394,-860.71742799,0.00027239,2]
[345531856,1734318639404,-442.2252433,0.00027239,2]
[345531857,1734318639414,-587.05105263,0.00027239,2]
[345531858,1734318639424,-860.71742799,0.00027239,2]
[345531859,1734318639434,-500.0,0.00027239,2]
[345531860,1734318639444,-500.0,0.00027239,2]
[345531861,1734318639454,-500.0,0.00027239,2]
[345531862,1734318639464,-860.71742799,0.00027239,2]
[345531863,1734318639474,-587.05105263,0.00027239,2]
[345531864,1734318639484,-500.0,0.00027239,2]
[345531865,1734318639494,-610.70015049,0.00027239,2]
[345531866,1734318639504,-587.05105263,0.00027239,2]
[345531867,1734318639513,-500.0,0.00027239,2]
[345531868,1734318639523,-860.71742799,0.00027239,2]
[345531869,1734318639532,-500.0,0.00027239,2]
[345531870,1734318639541,-500.0,0.00027239,2]
[345531871,1734318639555,-587.05105263,0.00027239,2]
[345531872,1734318639564,-860.71742799,0.00027239,2]
[345531873,1734318639574,-500.0,0.00027239,2]
[345531874,1734318639584,-500.0,0.00027239,2]
[345531875,1734318639594,-587.05105263,0.00027239,2]
[345531876,1734318639604,-860.71742799,0.00027239,2]
[345531877,1734318639613,-500.0,0.00027239,2]
[345531878,1734318639623,-500.0,0.00027239,2]
[345531879,1734318639632,-587.05105263,0.00027239,2]
[345531880,1734318639642,-500.0,0.00027239,2]
[345531881,1734318639651,-860.71742799,0.00027239,2]
[345531882,1734318639661,-500.0,0.00027239,2]
[345531883,1734318639670,-587.05105263,0.00027239,2]
[345531884,1734318639680,-860.71742799,0.00027239,2]
[345531885,1734318639689,-587.05105263,0.00027239,2]
[345531886,1734318639699,-500.0,0.00027239,2]
[345531887,1734318639708,-860.71742799,0.00027239,2]
[345531888,1734318639718,-860.71742799,0.00027239,2]
[345531889,1734318639727,-500.0,0.00027239,2]
[345531890,1734318639737,-587.05105263,0.00027239,2]
[345531891,1734318639746,-587.05105263,0.00027239,2]
[345531892,1734318639756,-860.71742799,0.00027239,2]
[345531893,1734318639767,-587.05105263,0.00027239,2]
[345531894,1734318639777,-587.05105263,0.00027239,2]
[345531895,1734318639788,-860.71742799,0.00027239,2]
[345531896,1734318639798,-587.05105263,0.00027239,2]
[345531897,1734318639808,-860.71742799,0.00027239,2]
[345531898,1734318639818,-587.05105263,0.00027239,2]
[345531899,1734318639829,-860.71742799,0.00027239,2]
[345531900,1734318639839,-587.05105263,0.00027239,2]
[345531901,1734318639848,-860.71742799,0.00027239,2]
[345531902,1734318639858,-587.05105263,0.00027239,2]
[345531903,1734318639867,-860.71742799,0.00027239,2]
[345531904,1734318639878,-587.05105263,0.00027239,2]
[345531905,1734318639888,-860.71742799,0.00027239,2]
[345531906,1734318639898,-860.71742799,0.00027239,2]
[345531907,1734318639908,-587.05105263,0.00027239,2]
[345531908,1734318639918,-860.71742799,0.00027239,2]
[345531909,1734318639928,-587.05105263,0.00027239,2]
[345531910,1734318639938,-860.71742799,0.00027239,2]
[345531911,1734318639948,-860.71742799,0.00027239,2]
[345531912,1734318639958,-860.71742799,0.00027239,2]
[345531913,1734318639968,-587.05105263,0.00027239,2]
[345531914,1734318639977,-860.71742799,0.00027239,2]
[345531915,1734318639987,-860.71742799,0.00027239,2]
[345531916,1734318639998,-587.05105263,0.00027239,2]
[345531917,1734318640008,-860.71742799,0.00027239,2]
[345531918,1734318640018,-112067.47689442,0.00027239,2]
[345531919,1734318640027,-9436.13106372,0.0002724,2]
[345531920,1734318640037,-2000.0,0.00027249,2]
[345531921,1734318640047,-2000.0,0.00027249,2]
[345531922,1734318640056,-1180.77,0.00027249,2]
[345531923,1734318640074,-151.0,0.00027253,6]
[345531926,1734318640083,-500.0,0.00027273,2]
[345531927,1734318640093,-500.0,0.00027273,2]
[345531929,1734318640103,-160.2098598,0.00027273,2]
[345531931,1734318640113,-502.99118708,0.00027273,2]
[345531933,1734318640123,-160.71051564,0.00027273,2]
[345531934,1734318640133,-500.0,0.00027273,2]
[345531935,1734318640143,-154.99692029,0.00027297,21]
[345531936,1734318640152,-666.0,0.00027297,2]
[345531937,1734318640162,-2268.6913486,0.00027297,2]
[345531938,1734318640172,-374.382416,0.000273,2]
[345531939,1734318640183,-500.0,0.00027373,2]
[345531940,1734318640196,-592.7406159,0.00027394,4]
[345531941,1734318640205,-503.4221347,0.00027397,7]
[345531942,1734318640218,-540.61907068,0.00027397,7]
[345531943,1734318640230,-500.0,0.00027397,7]
[345531944,1734318640239,-244.1132862,0.00027397,7]
[345531945,1734318640249,-153.23205172,0.00027397,7]
[345531946,1734318640260,-501.15342139,0.00027397,7]
[345531947,1734318640270,-500.0,0.00027397,7]
[345531948,1734318640279,-500.0,0.00027397,7]
[345531949,1734318640289,-500.0,0.00027397,7]
[345531950,1734318640298,-500.0,0.00027397,7]
[345531951,1734318640308,-500.0,0.00027397,7]
[345531952,1734318640318,-411.62151465,0.00027397,7]
[345531953,1734318640327,-500.0,0.00027397,7]
[345531954,1734318640337,-500.0,0.00027397,7]
[345531956,1734318640347,-500.0,0.00027397,7]
[345531959,1734318640358,-500.0,0.00027397,7]
[345531961,1734318640368,-500.0,0.00027397,7]
[345531963,1734318640378,-491.52401525,0.00027397,7]
[345531965,1734318640388,-500.0,0.00027397,7]
[345531967,1734318640397,-500.0,0.00027397,7]
[345531969,1734318640406,-503.13911303,0.00027397,7]
[345531971,1734318640416,-501.2055227,0.00027397,7]
[345531973,1734318640425,-500.0,0.00027397,7]
[345531975,1734318640435,-500.0,0.00027397,7]
[345531977,1734318640444,-501.51146595,0.00027397,7]
[345531978,1734318640454,-628.29501065,0.00027397,7]
[345531981,1734318640463,-500.0,0.00027397,7]
[345531983,1734318640473,-500.0,0.00027397,7]
[345531985,1734318640483,-501.84630422,0.00027397,7]
[345531987,1734318640492,-500.74514755,0.00027397,7]
[345531989,1734318640502,-502.76001849,0.00027397,7]
[345531991,1734318640512,-500.0,0.00027397,7]
[345531993,1734318640522,-500.0,0.00027397,7]
[345531994,1734318640531,-500.0,0.00027397,7]
[345531996,1734318640541,-539.10103757,0.00027397,7]
[345531998,1734318640550,-500.0,0.00027397,7]
[345532000,1734318640560,-601.15777676,0.00027397,7]
[345532003,1734318640570,-500.0,0.00027397,7]
[345532005,1734318640580,-502.53068108,0.00027397,7]
[345532007,1734318640590,-501.79564149,0.00027397,7]
[345532009,1734318640599,-500.0,0.00027397,7]
[345532010,1734318640609,-502.128653,0.00027397,7]
[345532013,1734318640619,-500.0,0.00027397,7]
[345532015,1734318640628,-502.53004187,0.00027397,7]
[345532017,1734318640638,-158.52666069,0.00027397,7]
[345532019,1734318640648,-501.65462542,0.00027397,7]
[345532021,1734318640657,-500.0,0.00027397,7]
[345532023,1734318640667,-500.0,0.00027397,7]
[345532036,1734318640677,-488.87686724,0.00027397,7]
[345532038,1734318640792,-500.0,0.00027397,7]
[345532040,1734318640801,-500.98404456,0.00027397,7]
[345532042,1734318640812,-500.0,0.00027397,7]
[345532044,1734318640821,-500.0,0.00027397,7]
[345532046,1734318640831,-507.09851157,0.00027397,7]
[345532048,1734318640840,-500.0,0.00027397,7]
[345532050,1734318640851,-500.0,0.00027397,7]
[345532052,1734318640861,-500.0,0.00027397,7]
[345532054,1734318640870,-500.0,0.00027397,7]
[345532056,1734318640880,-500.0,0.00027397,7]
[345532058,1734318640890,-500.0,0.00027397,7]
[345532060,1734318640899,-501.34176288,0.00027397,7]
[345532062,1734318640909,-500.0,0.00027397,7]
[345532064,1734318640918,-500.0,0.00027397,7]
[345532066,1734318640927,-501.10856102,0.00027397,7]
[345532068,1734318640936,-500.0,0.00027397,7]
[345532070,1734318640945,-501.2076488,0.00027397,7]
[345532072,1734318640954,-500.0,0.00027397,7]
[345532074,1734318640963,-500.0,0.00027397,7]
[345532076,1734318640973,-500.0,0.00027397,7]
[345532078,1734318640982,-500.0,0.00027397,7]
[345532080,1734318640991,-500.0,0.00027397,7]
[345532082,1734318641000,-500.0,0.00027397,7]
[345532084,1734318641009,-454.71255011,0.00027397,7]
[345532086,1734318641019,-503.50771366,0.00027397,7]
[345532088,1734318641028,-500.0,0.00027397,7]
[345532090,1734318641038,-500.0,0.00027397,7]
[345532092,1734318641047,-500.0,0.00027397,7]
[345532094,1734318641056,-500.0,0.00027397,7]
[345532096,1734318641065,-505.32923533,0.00027397,7]
[345532098,1734318641075,-500.0,0.00027397,7]
[345532100,1734318641084,-500.99448498,0.00027397,7]
[345532102,1734318641093,-505.15480537,0.00027397,7]
[345532104,1734318641102,-503.76657928,0.00027397,7]
[345532106,1734318641111,-500.10676438,0.00027397,7]
[345532108,1734318641120,-500.0,0.00027397,7]
[345532110,1734318641131,-500.0,0.00027397,7]
[345532112,1734318641140,-503.62184828,0.00027397,7]
[345532114,1734318641150,-503.05581639,0.00027397,7]
[345532116,1734318641159,-506.64602938,0.00027397,7]
[345532118,1734318641169,-628.99285002,0.00027397,7]
[345532120,1734318641178,-208.99163343,0.00027397,7]
[345532122,1734318641190,-503.79406505,0.00027397,7]
[345532124,1734318641199,-502.14819514,0.00027397,7]
[345532126,1734318641208,-500.0,0.00027397,7]
[345532128,1734318641217,-500.0,0.00027397,7]
[345532130,1734318641228,-512.24529412,0.00027397,7]
[345532132,1734318641237,-500.0,0.00027397,7]
[345532134,1734318641247,-500.0,0.00027397,7]
[345532136,1734318641257,-500.0,0.00027397,2]
[345532138,1734318641267,-509.83153385,0.00027397,7]
[345532140,1734318641276,-506.83928555,0.00027397,7]
[345532142,1734318641286,-500.0,0.00027397,7]
[345532144,1734318641295,-501.90130248,0.00027397,7]
[345532146,1734318641304,-643.70911293,0.00027397,7]
[345532148,1734318641314,-400.82791068,0.00027397,7]
[345532150,1734318641323,-501.98180804,0.00027397,7]
[345532152,1734318641333,-500.0,0.00027397,7]
[345532154,1734318641342,-500.0,0.00027397,7]
[345532156,1734318641351,-273.59105054,0.00027397,2]
[345532158,1734318641361,-500.0,0.00027397,7]
[345532160,1734318641370,-533.39566696,0.00027397,7]
[345532162,1734318641380,-500.0,0.00027397,7]
[345532164,1734318641390,-500.0,0.00027397,7]
[345532166,1734318641399,-510.78730795,0.00027397,7]
[345532168,1734318641409,-500.0,0.00027397,7]
[345532170,1734318641418,-164.90700594,0.00027397,7]
[345532172,1734318641427,-500.0,0.00027397,7]
[345532174,1734318641437,-500.0,0.00027397,7]
[345532176,1734318641447,-504.16219846,0.00027397,7]
[345532178,1734318641456,-1047.75,0.00027397,7]
[345532180,1734318641466,-502.87093643,0.00027397,7]
[345532182,1734318641475,-512.62968252,0.00027397,7]
[345532184,1734318641484,-502.33676985,0.00027397,7]
[345532186,1734318641494,-510.27868147,0.00027397,7]
[345532188,1734318641503,-506.54414155,0.00027397,7]
[345532190,1734318641512,-504.97892649,0.00027397,7]
[345532192,1734318641522,-502.88002799,0.00027397,7]
[345532194,1734318641532,-500.0,0.00027397,7]
[345532196,1734318641541,-512.24222871,0.00027397,7]
[345532199,1734318641556,-521.064071,0.00027397,7]
[345532201,1734318641571,-509.9254002,0.00027397,7]
[345532203,1734318641582,-505.78228069,0.00027397,7]
[345532205,1734318641592,-502.3793555,0.00027397,7]
[345532208,1734318641602,-501.78688542,0.00027397,7]
[345532209,1734318641612,-501.40067827,0.00027397,7]
[345532210,1734318641622,-512.39170351,0.00027397,7]
[345532211,1734318641632,-503.06587505,0.00027397,7]
[345532212,1734318641642,-508.52324405,0.00027397,7]
[345532213,1734318641652,-510.89063385,0.00027397,7]
[345532214,1734318641662,-509.22111093,0.00027397,7]
[345532215,1734318641673,-500.0,0.00027397,7]
[345532216,1734318641683,-501.44250337,0.00027397,7]
[345532217,1734318641693,-502.07809341,0.00027397,7]
[345532218,1734318641703,-500.0,0.00027397,7]
[345532219,1734318641713,-503.62570402,0.00027397,7]
[345532220,1734318641723,-427.10763945,0.00027397,7]
[345532221,1734318641733,-508.39225805,0.00027397,7]
[345532222,1734318641743,-558.95731696,0.00027397,7]
[345532223,1734318641753,-508.41735148,0.00027397,7]
[345532224,1734318641763,-500.0,0.00027397,7]
[345532225,1734318641772,-501.10623075,0.00027397,7]
[345532226,1734318641782,-503.67050746,0.00027397,7]
[345532227,1734318641792,-500.0,0.00027397,7]
[345532229,1734318641801,-500.0,0.00027397,7]
[345532231,1734318641811,-505.67026531,0.00027397,7]
[345532233,1734318641820,-501.76724895,0.00027397,7]
[345532235,1734318641830,-500.0,0.00027397,7]
[345532237,1734318641840,-500.0,0.00027397,7]
[345532239,1734318641849,-500.0,0.00027397,7]
[345532242,1734318641859,-501.44422984,0.00027397,7]
[345532244,1734318641868,-506.13897432,0.00027397,7]
[345532246,1734318641877,-500.0,0.00027397,7]
[345532248,1734318641887,-505.38447459,0.00027397,7]
[345532250,1734318641896,-500.0,0.00027397,7]
[345532252,1734318641906,-500.0,0.00027397,7]
[345532254,1734318641915,-509.24274948,0.00027397,7]
[345532256,1734318641925,-501.42176119,0.00027397,7]
[345532258,1734318641934,-502.54623081,0.00027397,7]
[345532260,1734318641944,-505.62981432,0.00027397,7]
[345532262,1734318641954,-1000.0,0.00027397,2]
[345532264,1734318641963,-500.0,0.00027397,7]
[345532266,1734318641972,-168.0,0.00027397,7]
[345532268,1734318641982,-507.76186186,0.00027397,7]
[345532270,1734318641991,-507.89121634,0.00027397,7]
[345532272,1734318642001,-228.40680789,0.00027397,7]
[345532274,1734318642010,-506.64271143,0.00027397,7]
[345532276,1734318642020,-500.0,0.00027397,7]
[345532278,1734318642030,-500.0,0.00027397,7]
[345532281,1734318642042,-500.0,0.00027397,7]
[345532283,1734318642051,-510.75552304,0.00027397,7]
[345532285,1734318642061,-504.29986167,0.00027397,7]
[345532287,1734318642070,-500.0,0.00027397,7]
[345532289,1734318642079,-508.49997072,0.00027397,7]
[345532291,1734318642089,-501.74957389,0.00027397,7]
[345532293,1734318642098,-503.60618369,0.00027397,7]
[345532295,1734318642108,-510.44211641,0.00027397,7]
[345532297,1734318642117,-500.0,0.00027397,7]
[345532299,1734318642127,-500.0,0.00027397,7]
[345532301,1734318642136,-503.75301117,0.00027397,7]
[345532303,1734318642145,-500.0,0.00027397,7]
[345532305,1734318642156,-502.75378082,0.00027397,7]
[345532307,1734318642166,-501.46467776,0.00027397,7]
[345532309,1734318642175,-503.38287302,0.00027397,7]
[345532311,1734318642186,-504.79570838,0.00027397,7]
[345532313,1734318642196,-504.90088562,0.00027397,7]
[345532315,1734318642205,-503.05047602,0.00027397,7]
[345532317,1734318642215,-517.37662677,0.00027397,7]
[345532319,1734318642224,-503.61115507,0.00027397,7]
[345532321,1734318642235,-500.0,0.00027397,7]
[345532323,1734318642244,-500.0,0.00027397,7]
[345532325,1734318642254,-500.0,0.00027397,7]
[345532327,1734318642264,-500.0,0.00027397,7]
[345532329,1734318642273,-500.0,0.00027397,7]
[345532331,1734318642283,-500.0,0.00027397,7]
[345532333,1734318642293,-500.0,0.00027397,7]
[345532335,1734318642302,-500.0,0.00027397,7]
[345532337,1734318642311,-507.46704063,0.00027397,7]
[345532339,1734318642321,-432.46744081,0.00027397,7]
[345532341,1734318642331,-500.0,0.00027397,7]
[345532343,1734318642340,-503.64487229,0.00027397,7]
[345532345,1734318642350,-512.22181688,0.00027397,7]
[345532347,1734318642359,-502.09423246,0.00027397,7]
[345532349,1734318642368,-505.73043511,0.00027397,7]
[345532351,1734318642378,-165.66542182,0.00027397,7]
[345532353,1734318642387,-500.0,0.00027397,7]
[345532355,1734318642396,-501.70061613,0.00027397,7]
[345532357,1734318642405,-500.0,0.00027397,7]
[345532359,1734318642415,-500.0,0.00027397,7]
[345532361,1734318642424,-505.54583286,0.00027397,7]
[345532363,1734318642433,-501.71316369,0.00027397,7]
[345532365,1734318642442,-500.0,0.00027397,7]
[345532367,1734318642452,-500.0,0.00027397,7]
[345532369,1734318642461,-503.76886762,0.00027397,7]
[345532371,1734318642471,-507.82168711,0.00027397,7]